Cogmind - Beta 10.2 @@@ ROGUE MODE // 2021.05.10 @ 23:51:14 Player: reason Result: Self-destructed Performance ------------- Evolutions (2) 1000 Regions Visited (4) 800 Robots Destroyed (11) 55 Value Destroyed (202) 202 Prototype IDs (1) 20 Alien Tech Used (0) 0 Bonus (49) 49 TOTAL SCORE: 2126 Bonus ------- Follower Combat Kills 49 Cogmind --------- Core Integrity 301/550 Matter 255/300 Energy 76/100 System Corruption 0% Temperature Cool (0) Movement Core (50) Location -8/Materials Parts ------- > --- POWER (2) -------- (None) > --- PROPULSION (3) --- (None) > --- UTILITY (4) ------ Improved Terrain Scanner Seismic Analyzer Terrain Scan Processor > --- WEAPON (2) ------- (None) > --- INVENTORY (4) ---- Light Nuclear Core Medium Storage Unit Advanced Sensor Array Advanced Signal Interpreter Peak State ------------ > --- POWER ------------ Heavy Ion Engine > --- PROPULSION ------- Aluminum Leg Aluminum Leg > --- UTILITY ---------- Small Storage Unit Small Storage Unit Terrain Scanner Terrain Scan Processor > --- WEAPON ----------- Light EM Pulse Cannon > --- INVENTORY -------- Light Ion Engine Light Ion Engine Light Ion Engine Flight Unit Flight Unit Flight Unit Flight Unit Improved Terrain Scanner [Rating: 12] Favorites ----------- Power Ion Engine Engine Ion Engine Propulsion Aluminum Leg Leg Aluminum Leg Flight Unit Flight Unit Utility Small Storage Unit Device Terrain Scanner Storage Small Storage Unit Processor Terrain Scan Processor Weapon EM Pulse Gun Energy Gun EM Pulse Gun Energy Cannon Light EM Pulse Cannon Ballistic Gun Assault Rifle Build | -11 -10 -10 -9 -8 ------- Run | Scr Mat Min Mat Mat Slots Evolved 4 | . . . 2 2 Power 1 | . . . . 1 Propulsion 1 | . . . . 1 Utility 2 | . . . 2 . Weapon . | . . . . . Parts Attached 22 | 4 3 1 7 7 Power 5 | 1 . . 3 1 Engine 5 | 1 . . 3 1 Core . | . . . . . Reactor . | . . . . . Propulsion 7 | 2 . . 1 4 Treads . | . . . . . Leg 3 | 2 . . 1 . Wheel . | . . . . . Hover . | . . . . . Flight 4 | . . . . 4 Utility 6 | 1 . 1 2 2 Device 2 | . . . 1 1 Storage 2 | 1 . 1 . . Processor 2 | . . . 1 1 Hackware . | . . . . . Protection . | . . . . . Artifact . | . . . . . Weapon 4 | . 3 . 1 . Energy Gun 2 | . 2 . . . Energy Cannon 1 | . . . 1 . Ballistic Gun 1 | . 1 . . . Ballistic Cannon . | . . . . . Launcher . | . . . . . Special Weapon . | . . . . . Impact Weapon . | . . . . . Slashing Weapon . | . . . . . Piercing Weapon . | . . . . . Special Melee Weapon . | . . . . . Unidentified Prototypes 1 | . . . 1 . Parts Lost 6 | . . . 1 5 Power 1 | . . . . 1 Propulsion 4 | . . . . 4 Utility . | . . . . . Weapon 1 | . . . 1 . Highest Loss Streak 5 | . . . 1 5 Average Slot Usage (%) 84 | . 85 93 87 59 Engine 11 | . 14 14 11 6 Leg 21 | . 28 28 22 . Flight 2 | . . . . 19 Device 5 | . . . 11 9 Storage 18 | . 14 21 22 8 Processor 3 | . . . 3 15 Energy Gun 15 | . 14 28 14 . Energy Cannon 1 | . . . 3 . Ballistic Gun 2 | . 14 . . . Naked Turns . | . . . . . Heaviest Build 18 | 9 13 17 18 12 Greatest Support 20 | 20 20 20 20 12 Greatest Overweight (x) . | . . . . . Average Overweight (x) . | . . . . . Largest Inventory Capacity 8 | 6 6 8 8 8 Average Capacity 6 | 5 6 7 8 5 Most Carried 8 | 6 6 6 8 8 Average Carried 6 | 3 5 5 7 4 Final Capacity 8 | 6 6 8 8 4 Final Carried 8 | 6 6 6 8 4 Class Distribution -------------------- 89% | Mutant 10% | Scavenger-Mutant Dominant Class ---------------- Mutant | -10/Materials Mutant | -10/Mines Mutant | -9/Materials Scavenger-Mutant | -8/Materials Resources | -11 -10 -10 -9 -8 ----------- Run | Scr Mat Min Mat Mat Matter Collected 350 | 240 . 40 70 . Remotely . | . . . . . Salvage Created 371 | . . 121 250 . Parts 29 | . . 6 23 . Haulers Intercepted . | . . . . . Recyclers Shooed 1 | . . 1 . . Parts Field Recycled . | . . . . . Retrieved Matter . | . . . . . Parts Self-Destructed . | . . . . . Prevented . | . . . . . Kills | -11 -10 -10 -9 -8 ------- Run | Scr Mat Min Mat Mat Combat Hostiles Destroyed 7 | . . 2 5 . Guns 3 | . . 2 1 . Cannons 4 | . . . 4 . Classes Destroyed 5 | . . 2 3 . Builder 2 | . . . 2 . Tunneler 1 | . . . 1 . Recycler 1 | . . 1 . . Swarmer 3 | . . 2 1 . Grunt 4 | . . . 4 . Best Kill Streak 2 | . . 2 2 . Combat Bots Only 2 | . . 2 2 . Max Kills in Single Turn 1 | . . 1 1 . Gunslinging . | . . . . . Exploded . | . . . . . Melee . | . . . . . Uniques/NPCs Destroyed . | . . . . . Combat | -11 -10 -10 -9 -8 -------- Run | Scr Mat Min Mat Mat Damage Taken 650 | . . 32 206 412 Core 294 | . . 18 27 249 Absorbed by Shields . | . . . . . Core Remaining (%) 95 | 100 . 92 93 . Volleys Fired 24 | . . 6 18 . Largest 2 | . . 2 2 . Hottest 80 | . . 80 80 . Shots Fired 39 | . . 12 27 . Gun 30 | . . 12 18 . Cannon 9 | . . . 9 . Launcher . | . . . . . Special . | . . . . . Kinetic . | . . . . . Thermal . | . . . . . Explosive . | . . . . . Electromagnetic 39 | . . 12 27 . Robot Hit Streak 9 | . . 1 9 . Robot Miss Streak 3 | . . 2 3 . Penetration Max . | . . . . . Secondary Targets 1 | . . 1 . . Max Gunslinging Chain 1 | . . 1 . . Shots Hit Robots 19 | . . 4 15 . Core Hits 12 | . . 3 9 . Critical Hits . | . . . . . Critical Kills . | . . . . . Critical Parts Destroyed . | . . . . . Melee Attacks . | . . . . . Impact . | . . . . . Slashing . | . . . . . Piercing . | . . . . . Sneak Attacks . | . . . . . Combat Hostiles . | . . . . . Follow-up Attacks . | . . . . . Damage Inflicted 366 | . . 58 308 . Guns 198 | . . 58 140 . Cannons 168 | . . . 168 . Explosions . | . . . . . Melee . | . . . . . Ramming . | . . . . . Kinetic . | . . . . . Thermal . | . . . . . Explosive . | . . . . . Electromagnetic 366 | . . 58 308 . Impact . | . . . . . Slashing . | . . . . . Piercing . | . . . . . Highest Corruption . | . . . . . Average Corruption . | . . . . . Corruption Purged . | . . . . . Overload Shots . | . . . . . Overflow Damage . | . . . . . Projectiles . | . . . . . Explosions . | . . . . . Melee . | . . . . . Knockbacks . | . . . . . Impact . | . . . . . Kinetic . | . . . . . Secondary . | . . . . . Self-Inflicted Damage . | . . . . . Shots . | . . . . . Rammed . | . . . . . Targets Rammed . | . . . . . Kicked . | . . . . . Crushed . | . . . . . Highest Temperature 72 | . . 72 62 . Average Temperature 23 | . . 30 20 . Received Heat Transfer 183 | . . . 57 126 Siege Activations . | . . . . . Robots Corrupted . | . . . . . Combat Hostiles . | . . . . . Parts Fried 1 | . . . 1 . Impact Corruptions . | . . . . . Robots Melted . | . . . . . Combat Hostiles . | . . . . . Parts Melted . | . . . . . Heat Transferred . | . . . . . Parts Sabotaged . | . . . . . Parts Stolen . | . . . . . Parts Stripped . | . . . . . Power Chain Reactions . | . . . . . Missiles Intercepted . | . . . . . Alert | -11 -10 -10 -9 -8 ------- Run | Scr Mat Min Mat Mat Peak Influence 377 | . 5 71 243 377 Initial 81 | . . 1 27 81 Average 108 | . 4 48 167 229 Maximum Alert Level 1 | . . . 1 1 Low Security (%) 76 | 100 100 100 61 39 Level 1 23 | . . . 38 60 Level 2 . | . . . . . Level 3 . | . . . . . Level 4 . | . . . . . Level 5 . | . . . . . High Security . | . . . . . Max Security . | . . . . . Squads Dispatched 2 | . . . 1 1 Investigation 1 | . . . . 1 Extermination . | . . . . . Reinforcement 1 | . . . 1 . Assault . | . . . . . Garrison . | . . . . . Intercept . | . . . . . Construction Impeded . | . . . . . Haulers Reinforced . | . . . . . Stealth | -11 -10 -10 -9 -8 --------- Run | Scr Mat Min Mat Mat Distress Signals 1 | . . . . 1 Communications Jammed . | . . . . . Distress Signals . | . . . . . Times Spotted 50 | . . 3 23 24 Peak Tracking Total 14 | . 1 3 4 14 Tactical Retreats 5 | . . 1 . 4 Traps | -11 -10 -10 -9 -8 ------- Run | Scr Mat Min Mat Mat Traps Triggered . | . . . . . Indirectly . | . . . . . Trap Hack Attempts . | . . . . . Triggered . | . . . . . Disarmed . | . . . . . Reprogrammed . | . . . . . Reused . | . . . . . Traps Extracted . | . . . . . Installed . | . . . . . Triggered . | . . . . . Machines | -11 -10 -10 -9 -8 ---------- Run | Scr Mat Min Mat Mat Machines Disabled . | . . . . . Max in Single Turn . | . . . . . Garrison Access 1 | . . . . 1 Machines Sabotaged . | . . . . . Garrisons Compromised . | . . . . . Overloaded Fab Kills . | . . . . . Fab Network Shutdowns . | . . . . . Hacking | -11 -10 -10 -9 -8 --------- Run | Scr Mat Min Mat Mat Machines Accessed 8 | . 3 . 2 3 Terminals 7 | . 3 . 2 2 Fabricators . | . . . . . Repair Stations . | . . . . . Recycling Units . | . . . . . Scanalyzers . | . . . . . Garrison Access 1 | . . . . 1 Total Hacks 17 | . 6 . 2 9 Successful 8 | . 2 . 2 4 Failed 9 | . 4 . . 5 Catastrophic 1 | . . . . 1 Database Lockouts . | . . . . . Manual 15 | . 6 . 2 7 Terminals 14 | . 6 . 2 6 Fabricators . | . . . . . Repair Stations . | . . . . . Recycling Units . | . . . . . Scanalyzers . | . . . . . Garrison Access 3 | . . . . 3 Terminal Hacks 6 | . 1 . 2 3 Unreport Threat 1 | . . . . 1 Zone Layout 5 | . 1 . 2 2 Fabricator Hacks . | . . . . . Repair Station Hacks . | . . . . . Recycling Unit Hacks . | . . . . . Scanalyzer . | . . . . . Garrison Access Hacks . | . . . . . Unauthorized Hacks 2 | . 1 . . 1 Terminals 1 | . 1 . . . Assimilate 1 | . 1 . . . Fabricators . | . . . . . Repair Stations . | . . . . . Recycling Units . | . . . . . Scanalyzers . | . . . . . Garrison Access 1 | . . . . 1 Jam 1 | . . . . 1 Data Cores Recovered . | . . . . . Used . | . . . . . Hacking Detections 3 | . 2 . . 1 Full Trace Events . | . . . . . Feedback Events . | . . . . . Feedback Blocked . | . . . . . Robot Schematics Acquired . | . . . . . Robots Built . | . . . . . Matter . | . . . . . Time . | . . . . . Total Robot Build Rating . | . . . . . Part Schematics Acquired . | . . . . . Parts Built . | . . . . . Matter . | . . . . . Time . | . . . . . Total Part Build Rating . | . . . . . Parts Repaired . | . . . . . Time . | . . . . . Parts Recycled . | . . . . . Recycled Matter . | . . . . . Retrieved Matter . | . . . . . Retrieved Components . | . . . . . Parts Scanalyzed . | . . . . . Part Schematics Acquired . | . . . . . Parts Damaged . | . . . . . Bothacking | -11 -10 -10 -9 -8 ------------ Run | Scr Mat Min Mat Mat Used RIF Installer . | . . . . . Robots Hacked . | . . . . . Non-combat . | . . . . . Combat . | . . . . . Robot Hacks Applied . | . . . . . Relay Couplers Released . | . . . . . Robots Rewired . | . . . . . Allies Hacked . | . . . . . Hacks Repelled . | . . . . . Allies | -11 -10 -10 -9 -8 -------- Run | Scr Mat Min Mat Mat Total Allies 3 | . . 3 . . Largest Group 3 | . . 3 3 . Highest-Rated Group 40 | . . 40 40 . Highest-Rated Ally 16 | . . 16 16 . Total Orders . | . . . . . Ally Attacks 24 | . . . 24 . Total Damage 198 | . . . 198 . Kills 7 | . . . 7 . Allies Corrupted . | . . . . . Allies Melted . | . . . . . Intel | -11 -10 -10 -9 -8 ------- Run | Scr Mat Min Mat Mat Robot Analysis Total . | . . . . . Derelict Logs Recovered 1 | . . 1 . . Drone Launches . | . . . . . Drone Recoveries . | . . . . . Exploration | -11 -10 -10 -9 -8 ------------- Run | Scr Mat Min Mat Mat Turns Passed 1297 | 65 259 275 545 153 Spaces Moved 1147 | 47 212 199 368 321 Core 78 | 6 . . . 72 Treads . | . . . . . Legs 820 | 41 212 199 368 . Wheels . | . . . . . Hover . | . . . . . Flight 249 | . . . . 249 Fastest Speed 34 | 50 120 120 120 34 Average Speed 97 | 111 120 120 120 39 Slowest Speed 120 | 120 120 120 120 50 Overloaded Moves . | . . . . . Propulsion Burnouts . | . . . . . Robots Hopped 1 | . . . . 1 Cave-ins Triggered . | . . . . . Exploration Rate (%) 30 | 4 29 52 24 44 Regions Visited 4 Branch Regions 1 Pre-discovered Areas 1 | . . 1 . . Known Exits Taken . | . . . . . Unknown Exits Taken 4 | 1 1 1 1 . Scrap Searched . | . . . . . Spaces Dug . | . . . . . Terrain Destroyed . | . . . . . Melee . | . . . . . Projectile . | . . . . . AOE . | . . . . . Terrain Rammed . | . . . . . Walls Destroyed . | . . . . . Machines Disabled . | . . . . . Actions | -11 -10 -10 -9 -8 --------- Run | Scr Mat Min Mat Mat Total 1297 | 60 216 223 448 350 Wait 51 | . . 15 29 7 Move 1141 | 46 211 198 367 319 Hop 1 | . . . . 1 Pick Up 35 | 10 2 2 15 6 Fast Attach . | . . . . . Attach 16 | 4 2 1 3 6 Detach 1 | . . . . 1 Swap 6 | . 1 . 4 1 Drop 22 | . . 1 12 9 Fire 24 | . . 6 18 . Melee . | . . . . . Ram . | . . . . . Kick . | . . . . . Crush . | . . . . . Escape Stasis . | . . . . . Rewire . | . . . . . Trap . | . . . . . Miscellaneous . | . . . . . Route ------- -11/Scrapyard -10/Materials -10/Mines -9/Materials -8/Materials (discovered 1 exit: [Fac]) History --------- Turn | Location | Event 2 | -11/Scrapyard | Discovered new exit (range 16) 66 | -11/Scrapyard | Entered Materials 83 | -10/Materials | Discovered new exit (range 11) 316 | -10/Materials | Build established: Mutant 325 | -10/Materials | Entered Mines 494 | -10/Mines | Assisted by bots powering up and referring to "LRC-V3" 518 | -10/Mines | Learned location of Zion (-6) 572 | -10/Mines | Discovered new exit (range 7) 600 | -10/Mines | Entered Materials 600 | -9/Materials | Accompanied by 3 allies 600 | -9/Materials | Evolved 2 slots: Utility x2 1135 | -9/Materials | Discovered new exit (range 5) 1145 | -9/Materials | Entered another Materials area 1145 | -8/Materials | Evolved 2 slots: Power x1, Propulsion x1 1263 | -8/Materials | Discovered new exit (range 16) 1291 | -8/Materials | Lost 5 parts (1p4n) 1298 | -8/Materials | Self-destructed Last Messages --------------- >>Alert(Purge) Purged threat record, alert level lowered. 01224_ K-01 Serf collects debris. 01232_ Lgt. Ion Engine destroyed. 01232_ Flight Unit destroyed. 01244_ Connecting with Terminal... >>Layout(Zone) Retrieving Zone 7N layout... Downloaded map data. 01245_ K-01 Serf collects debris. 01257_ Acquired Adv. Sensor Array. 01257_ Flight Unit destroyed. 01258_ Dropped Lgt. Ion Engine. 01259_ Dropped Maneuvering Thrusters. 01259_ Dropped Melee Analysis Suite. 01260_ Dropped Sml. Storage Unit. 01260_ Flight Unit destroyed. 01261_ Acquired Adv. Signal Interpreter. 01263_ EXIT=FOUND 01282_ K-01 Serf collects debris. Map ----- +----------------------------------------------------+ | "" #????????????????????????????????????????? | | "" +????????????????????????????????????????? | | """ #????????????????????????????????????????? | | "" +????????????????????????????????????????? | | """ #????????????????????????????????????????? | | """ #????????????????????????????????????????? | | """ ####?#???????????????????????????????????? | | " ##???????????????????????????????????????? | | #????#???????????????????????????????????? | | #????????????????????????????????????????? | | #"T"# #????????????????????????????????????????? | | ##### #????????????????????????????????????????? | | #????? #???????#?????????? #??????????????????? | | #?????? #?????????????????? # ?????????????????? | | #???????#?????????????????? /??????????????????? | | #???? ????????????????????# #??????????????????? | | #?????????????????????????# # ?????????????????? | | #????????????????????????## #???"??????????????? | | #???????????????????????? #??????????????????? | | ##?????????????????? ????? #????????#?????????? | | #???????????? ?????????? ? r#???????#??????????? | | #?#?????????????????#?????# #??????????????????? | | ###??????? ???????????????#w ##?????????????????? | | # ???????????????????##### #??????????????????? | | # ? ???????"?????????#|| u####???????????????? | | # ??????? ?"??????###||@ !!##??????????????? | | # ??????????????????#== !##???#?????????? | | + ?? ?? #????? #?????#== u !#??????????????? | | # ?? ????#???#?????#?#!! !#??????#???????? | | # ? ??????#????#?????#!! !#??????#???????? | | # ??? ?????#???#????###### !!##?????????#????? | | # ????????????????#???#??# ####????##?????????? | | ####??#???#??????#??#??#??# #??????????????????? | | #??#??????????##########??# #??????????????????? | | ##????#????????# ## ##???????#?????????? | | #????#?#????#??# " # #?????#???????????? | | #??#??#########? """ T # #?#?#?????????????? | | ####### ###??""" " + #???#??#??????????? | | #?#??""" # #??#????#?????????? | | #??# # #?????????????????? | | #??# ?## ##??#????#?#???????? | | ####### ##?# ## #??#?###???????????? | | #??## ##??############ #????#???#???#?????? | | "#???# #??#?# ! + #?#???#????????????? | | "#?#?# ##???# [ # #########??????????? | | "##??# #??#?#[ [ # # #??????????? | | T#??## ##?#?# # # ##?? ??????? | | "#???# #????########### # #??????????? | | "#?### ###?#??##???#??# # #??????????? | | "#?# ##??#?????#??# # #??"???????? | +----------------------------------------------------+ Best States ------------- Heat Dissipation 31 Energy Generation 14 Energy Capacity 280 Matter Stores 300 Matter Capacity 300 Sight Range 16 Terrain Scan Range 16 Terrain Scan Density 135 Evasion (%) 63 Item Schematics ----------------- None Robot Schematics ------------------ None Fabricated ------------ Nothing Alien Tech Used ----------------- None Achievements -------------- None Challenges ------------ None Game ------ Seed GlidesysPortableHumpback Manual? 0 Play Time 00:18:22 Cumulative 30.1 hours Start 2021.05.10 @ 23:16:42 End 2021.05.10 @ 23:51:14 Sessions 1 Manual Loads 0 Difficulty Rogue Special Mode None Game No. 45 Rogue 45 Adventurer 0 Explorer 0 Win Type - Total 0 Types 0/0/0/0/0/0/0/0/0 Lore% 21 Gallery% 34 Achievement% 26 Wizard Run 0 Options --------- ASCII 0 Keyboard 0 Movement Numpad Keybinds 0 Fullscreen 1 Font 18/SmallcapsGlow Map View 76x50 Tactical HUD 1 Map Filters NONE Filters NONE Steam 1 RUN: 68690713-6138-4025-bd7a-36b2bbc6ce8e